Workbook

Sheet 全市经济
A1: 三、全市主要经济指标 | G1: （二）攀枝花生产总值
A2: （一）综合 | I2: 单位：万元
A3: 指标 | B3: 单位 | C3: 本月止累计 | D3: ±% | E3: 备注 | H3: 上半年 | I3: 累计±%
A4: 一、地区生产总值(GDP) | B4: 亿元 | C4: =H4/10000 -> 501.41 | D4: =I4 -> 0.7 | G4: 地区生产总值 | H4: 5014116 | I4: 0.7
A5: 二、农林牧渔业总产值 | B5: 亿元 | C5: 58.58 | D5: 2.7 | G5: # 第一产业增加值 | H5: 309417 | I5: 3.1
A6: 三、规上工业增加值 | B6: % | C6: - | D6: =B30 -> 1.8 | G6: 第二产业增加值 | H6: 2636185 | I6: 2.3
A7: 四、全社会固定资产投资 | B7: 亿元 | C7: - | D7: =H60 -> 4.3 | G7: 第三产业增加值 | H7: 2068514 | I7: -2.4
A8: 五、社会消费品零售总额 | B8: 亿元 | C8: =B94/10000 -> 104.66 | D8: =C94 -> -7.7 | G8: # 批发和零售业增加值 | H8: 564623 | I8: -10.0
A9: 六、城镇居民人均可支配收入 | B9: 元 | C9: =B150 -> 19594 | D9: =C150 -> 4.2 | G9: 交通运输、仓储和邮政业增加值 | H9: 190398 | I9: 0.4
A10: 七、农村居民人均可支配收入 | B10: 元 | C10: =H150 -> 9471 | D10: =I150 -> 7.2 | G10: 住宿和餐饮业增加值 | H10: 87645 | I10: -18.0
A11: 八、居民消费价格指数 | B11: % | C11: =I120 -> 106.2 | D11: =C11-100 -> 6.2 | G11: 金融业增加值 | H11: 116303 | I11: -2.1
A12: 九、一般公共预算收入 | B12: 亿元 | C12: =H95/10000 -> 32.75 | D12: =I95 -> -3.9 | G12: 房地产业增加值 | H12: 239839 | I12: 2.8
A13: 一般公共预算支出 | B13: 亿元 | C13: =H100/10000 -> 52.35 | D13: =I100 -> -22.4 | G13: 其他服务业增加值 | H13: 861963 | I13: 1.6
A14: 十、税务局组织收入 | B14: 亿元 | C14: =H105/10000 -> 54.56 | D14: =I105 -> -12.9
A15: 其中：税收收入 | B15: 亿元 | C15: =H106/10000 -> 43.80 | D15: =I106 -> -19.3 | G15: 说明：按《国民经济行业分类》（GB/T 4754—2017）和《三次产业划分规定》，第一产业指农、林、牧、渔业（不含农、林、牧、渔专业及辅助性活动）；第二产业指工业（不含开采专业及辅助性活动，金属制品、机械和设备修理业）和建筑业；第三产业即服务业，指除第一产业、第二产业以外的其他行业。
A16: 十一、金融机构人民币存款余额 | B16: 亿元 | C16: =B121/10000 -> 1111.69 | D16: =D121 -> 2.9 | E16: 比年初±%
A17: 金融机构人民币贷款余额 | B17: 亿元 | C17: =B133/10000 -> 730.57 | D17: =D133 -> -11.6 | E17: 比年初±%
A18: 十二、进出口总额 | B18: 亿元 | C18: =B101 -> 15.52 | D18: =C101 -> -6.6
A19: 其中：出口总额 | B19: 亿元 | C19: =B102 -> 5.47 | D19: =C102 -> -19.9
A20: 十三、招商引资当年到位资金 | B20: 亿元 | C20: =B104/10000 -> 423.95 | D20: =C104 -> 2.2
A27: （三）工业 | G27: （三）工业
I28: 单位：万元
B29: 本月止 累计±% | G29: 规模以上工业企业经济效益 | H29: 1-5月止累计 | I29: ±%
A30: 一、规上工业增加值 | B30: 1.8 | G30: 企业单位数（个） | H30: 338
A31: # 轻工业 | B31: 3.1 | G31: 其中：亏损企业 | H31: 60
A32: 重工业 | B32: 1.8 | G32: 亏损面（%） | H32: 17.8 | I32: -2.7
A33: #黑色金属冶炼和压延加工业 | B33: 2.8 | G33: 流动资产合计 | H33: 9066795 | I33: 2.8
A34: 黑色金属矿采选业 | B34: -8.9 | G34: 其中：存货 | H34: 1093032 | I34: 1.6
A35: 化学原料和化学制品制造业 | B35: -5.2 | G35: 资产合计 | H35: 26164174 | I35: 5.5
A36: 煤炭开采和洗选业 | B36: -5.9 | G36: 负债合计 | H36: 16033581 | I36: -0.9
A37: 金属制品业 | B37: 0.5 | G37: 营业收入 | H37: 6980193 | I37: -6.1
A38: 石油、煤炭及其他燃料加工业 | B38: -6.5 | G38: 营业成本 | H38: 6086680 | I38: -4.7
A39: 电力、热力生产和供应业 | B39: -5.7 | G39: 利润总额 | H39: 387571 | I39: -21.5
A40: 有色金属矿采选业 | B40: 30.7
A41: 非金属矿物制品业 | B41: 59.0
A42: 汽车制造业 | B42: 11.5
A43: 二、产销率（%） | B43: 96.5
A57: （四）能源 | G57: （五）投资
C59: 本月止累计 | D59: 累计±% | H59: 本月止 累计±% | I59: 占比%
A60: 一、规上工业综合能源消费量（万吨标准煤） | C60: 405.90 | D60: -2.3 | G60: 一、全社会固定资产投资 | H60: 4.3 | I60: 100
A61: （一）按工业行业分 | G61: # 项目投资 | H61: 2.6 | I61: 81.6
A62: 采矿业 | C62: 69.99 | D62: -8.0 | G62: # 民间投资 | H62: 10.4 | I62: 49.3
A63: 制造业 | C63: 332.36 | D63: -1.1 | G63: (一)按构成分
A64: 电力、热力、燃气及水生产和供应业 | C64: 3.55 | D64: 6.8 | G64: 1.建安工程 | H64: 5 | I64: 83.1
A65: （二）高耗能行业 | G65: 2.设备工器具购置 | H65: 7.9 | I65: 12.6
A66: 石油、煤炭及其他燃料加工业 | C66: 30.51 | D66: -4.0 | G66: 3.其他费用 | H66: -14 | I66: 4.4
A67: 化学原料和化学制品制造业 | C67: 29.81 | D67: -25.8 | G67: （二）按结构分
A68: 非金属矿物制品业 | C68: 10.62 | D68: -16.4 | G68: 1.基础设施投资 | H68: -2 | I68: 36.9
A69: 黑色金属冶炼和压延加工业 | C69: 238.56 | D69: 3.1 | G69: 2.产业投资 | H69: 29.5 | I69: 35.3
A70: 有色金属冶炼和压延加工业 | C70: 1.99 | D70: 16.2 | G70: 3.民生及社会事业投资 | H70: -25.9 | I70: 10.9
A71: 电力、热力生产和供应业 | C71: 2.68 | D71: 6.5 | G71: 4.房地产开发 | H71: 8 | I71: 15.5
A72: 二、全社会用电量(亿千瓦时) | C72: 65.74 | D72: -2.7 | G72: 5.其他投资 | H72: -24.6 | I72: 1.4
A73: 其中：工业用电量 | C73: 57.89 | D73: -2.4 | G73: (三)按行业分
A74: 三、规上工业新能源产品产量（亿千瓦时） | G74: 1.第一产业 | H74: -40.8 | I74: 2.8
A75: 风力发电量 | C75: 5.44 | D75: -22.6 | G75: 2.第二产业 | H75: 28.7 | I75: 37
A76: 太阳能发电量 | C76: 1.84 | D76: 1.5 | G76: # 工业 | H76: 30.9 | I76: 36.8
G77: 3.第三产业 | H77: -3.5 | I77: 60.1
H80: 本月止累计 | I80: 累计±%
G81: 二、商品房开发与销售（万平方米）
G82: (一)房屋施工面积 | H82: 540.49 | I82: -29.2
G83: # 住宅 | H83: 407.59 | I83: -19.5
G84: (二)房屋竣工面积 | H84: 44.27 | I84: 110.6
G85: # 住宅 | H85: 33.93 | I85: 110.8
G86: (三)商品房销售面积(含现房、期房） | H86: 66.43 | I86: 5.5
G87: # 住宅 | H87: 58.70 | I87: 3.6
G88: （四）商品房待售面积 | H88: 64.41 | I88: 41.8
G89: # 住宅 | H89: 21.2 | I89: 109.1
A91: （六）国内外贸易 | G91: （七）财政、税收
C92: 单位：万元 | I92: 单位：万元
B93: 本月止累计 | C93: 累计±% | H93: 本月止累计 | I93: 累计±%
A94: 一、社会消费品零售总额 | B94: 1046648 | C94: -7.7 | G94: 一、地方财政收入
A95: (一)按经营地分 | G95: 1.一般公共预算收入 | H95: 327507 | I95: -3.9
A96: 城镇 | B96: 950535 | C96: -7.8 | G96: 其中：税收收入 | H96: 215989 | I96: -12.1
A97: 乡村 | B97: 96113 | C97: -7.3 | G97: 非税收入 | H97: 111518 | I97: 17.4
A98: (二)按消费形态分 | G98: 2.政府性基金收入 | H98: 79958 | I98: -48.8
A99: 餐饮收入 | B99: 139859 | C99: -19.2 | G99: 二、地方财政支出
A100: 商品零售 | B100: 906789 | C100: -5.7 | G100: 1.一般公共预算支出 | H100: 523488 | I100: -22.4
A101: 二、外贸进出口总额（亿元） | B101: 15.52 | C101: -6.6 | G101: 其中：一般公共服务 | H101: 66015 | I101: -34.7
A102: 出口总额 | B102: 5.47 | C102: -19.9 | G102: 教育 | H102: 104781 | I102: -18.9
A103: 进口总额 | B103: 10.05 | C103: 2.6 | G103: 社会保障和就业 | H103: 73179 | I103: -1.0
A104: 三、招商引资当年到位资金额 | B104: 4239470 | C104: 2.2 | G104: 2.政府性基金支出 | H104: 290834 | I104: 11.7
A105: 国内省外到位资金 | B105: 1867826 | C105: 5.9 | G105: 三、税务局组织收入总计 | H105: 545647 | I105: -12.9
A106: 省内到位资金 | B106: =B104-B105 -> 2371644 | C106: -0.4 | G106: # 税收合计 | H106: 437998 | I106: -19.3
A107: 注：根据第四次全国经济普查结果对2019年社会消费品零售总额进行了修订，2020年增速按照可比口径计算。 | G107: # 第三产业 | H107: 181882 | I107: -10.3
G108: # 增值税 | H108: 220723 | I108: -29.3
G109: 消费税 | H109: 8362 | I109: -25.5
G110: 注：在税务局组织收入总计累计数据中，出口退税2397万元，
G111: 其他收入5049万元。
A116: （八）金 融 | G116: （九）城市物价
D117: 单位：万元 | I117: 单位：%
B118: 本月末 | C118: 比年初增减 | G118: 城市物价(上年同期=100) | H118: 当月 | I118: 本月止 累计
C119: 绝对额 | D119: ±%
A120: 一、金融机构本外币各项存款余额 | B120: 11132459 | C120: 307127 | D120: 2.8 | G120: 一、居民消费价格总指数 | H120: 104.4 | I120: 106.2
A121: 金融机构人民币各项存款余额 | B121: 11116945 | C121: 310528 | D121: 2.9 | G121: # 消费品价格指数 | H121: 106.6 | I121: 108.7
A122: 1.住户存款 | B122: 7671631 | C122: 529398 | D122: 7.4 | G122: # 服务价格指数 | H122: 100.1 | I122: 101.3
A123: # 活期存款 | B123: 2539438 | C123: 204781 | D123: 8.8 | G123: 1.食品烟酒 | H123: 115.8 | I123: 118.9
A124: 定期及其他存款 | B124: 5132194 | C124: 324618 | D124: 6.8 | G124: 粮 食 | H124: 99.5 | I124: 98.9
A125: 2.非金融企业存款 | B125: 1745668 | C125: 1322 | D125: 0.1 | G125: 鲜 菜 | H125: 100.8 | I125: 103.6
A126: # 活期存款 | B126: 845324 | C126: -64394 | D126: -7.1 | G126: 畜 肉 | H126: 168.6 | I126: 173.9
A127: 定期及其他存款 | B127: 900343 | C127: 65716 | D127: 7.9 | G127: 水 产 品 | H127: 107.8 | I127: 104.4
A128: 3.广义政府存款 | B128: 1691704 | C128: -244876 | D128: -12.6 | G128: 蛋 | H128: 85.0 | I128: 95.9
A129: 财政性存款 | B129: 94425 | C129: -95554 | D129: -50.3 | G129: 鲜 果 | H129: 80.0 | I129: 95.3
A130: 机关团体存款 | B130: 1597278 | C130: -149322 | D130: -8.5 | G130: 2.衣着 | H130: 98.9 | I130: 99.9
A131: 4.非银行业金融机构存放 | B131: 22613 | C131: 21268 | D131: 1581.3 | G131: 3.居住 | H131: 98.8 | I131: 100.4
A132: 二、金融机构本外币各项贷款余额 | B132: 7322877 | C132: -965092 | D132: -11.6 | G132: 4.生活用品及服务 | H132: 99.6 | I132: 99.8
A133: 金融机构人民币各项贷款余额 | B133: 7305691 | C133: -957640 | D133: -11.6 | G133: 5.交通和通信 | H133: 97.7 | I133: 98.9
A134: 1.住户贷款 | B134: 1254329 | C134: 162566 | D134: 14.9 | G134: 6.教育文化和娱乐 | H134: 101.3 | I134: 102.3
A135: # 短期贷款 | B135: 286439 | C135: 56925 | D135: 24.8 | G135: 7.医疗保健 | H135: 98.7 | I135: 100.7
A136: 中长期贷款 | B136: 967890 | C136: 105641 | D136: 12.3 | G136: 8.其他用品和服务 | H136: 102.8 | I136: 103.5
A137: 2.非金融企业及机关团体贷款 | B137: 6068548 | C137: -1127658 | D137: -15.7 | G137: 二、商品零售价格总指数 | H137: 103.5 | I137: 105.6
A138: # 短期贷款 | B138: 1573515 | C138: -407260 | D138: -20.6
A139: 中长期贷款 | B139: 3524387 | C139: 115984 | D139: 3.4
A140: 票据融资 | B140: 966568 | C140: -838109 | D140: -46.4
A141: 3.非银行金融机构贷款
A142: 三、金融机构外汇贷款余额（万美元） | B142: 2428 | C142: -1104 | D142: -31.3
A143: 四、个人消费贷款余额 | B143: 687747 | C143: 113707 | D143: 19.8
A144: # 住房消费贷款 | B144: 531231 | C144: 58225 | D144: 12.3
A145: 汽车消费贷款 | B145: 1523 | C145: 63 | D145: =C145/(B145-C145)*100 -> 4.3
A146: 五、签发承兑汇票余额 | B146: 555806 | C146: -142873 | D146: -20.4
A147: （十）城镇居民生活 | G147: （十一）农村居民生活
C148: 单位：元 | I148: 单位：元
B149: 上半年 | C149: 累计±% | H149: =B149 -> 上半年 | I149: 累计±%
A150: 一、城镇居民人均可支配收入 | B150: 19594 | C150: 4.2 | G150: 一、农村居民人均可支配收入 | H150: 9471 | I150: 7.2
A151: 其中: 工资性收入 | B151: 12203 | C151: 6.0 | G151: 其中：工资性收入 | H151: 3094 | I151: 6.2
A152: 经营净收入 | B152: 2537 | C152: -14.8 | G152: 经营净收入 | H152: 5681 | I152: 8.2
A153: 财产净收入 | B153: 847 | C153: 6.0 | G153: 财产净收入 | H153: 105 | I153: 5.4
A154: 转移净收入 | B154: 4007 | C154: 13.9 | G154: 转移净收入 | H154: 591 | I154: 3.7
A155: 二、城镇居民人均消费性支出 | B155: 11452 | C155: -5.4 | G155: 二、农村居民人均生活消费支出 | H155: 5771 | I155: -3.5
A156: 其中：食品烟酒 | B156: 4176 | C156: 1.6 | G156: 其中：食品烟酒 | H156: 1794 | I156: 5.4
A157: 衣着 | B157: 794 | C157: -13.1 | G157: 衣着 | H157: 287 | I157: -1.6
A158: 居住 | B158: 1886 | C158: 1.9 | G158: 居住 | H158: 1075 | I158: 5.6
A159: 生活用品及服务 | B159: 774 | C159: -1.5 | G159: 生活用品及服务 | H159: 374 | I159: 2.5
A160: 医疗保健 | B160: 1086 | C160: -6.5 | G160: 交通和通信 | H160: 1127 | I160: -21.4
A161: 交通和通信 | B161: 1537 | C161: -18.0 | G161: 教育、文化和娱乐 | H161: 425 | I161: -5.4
A162: 教育、文化和娱乐 | B162: 955 | C162: -13.9 | G162: 医疗保健 | H162: 606 | I162: -5.0
A163: 其他用品及服务 | B163: 244 | C163: -20.1 | G163: 其他用品及服务 | H163: 83 | I163: 1.3

Sheet Sheet1
